bitfinex/quotes_ETHUSD_20240730
["timestamp","ask_amount","ask_price","bid_price","bid_amount"]
[1722370574920,4.06286757,3259.6,3258.1,0.31255898]
[1722370575123,0.4521957,3259.7,3258.2,0.06137161]
[1722370575124,1.06286757,3259.5,3258.2,0.06137161]
[1722370575321,1.06286757,3259.6,3258.3,0.06136504]
[1722370575954,1.06286757,3259.6,3258.4,0.55]
[1722370576096,3.0,3260.1,3258.5,0.36915441]
[1722370576295,1.06274279,3260.0,3258.7,2.644]
[1722370576498,1.06274279,3259.9,3258.8,38.38075143]
[1722370576723,1.06272596,3259.8,3258.9,0.55]
[1722370576926,0.4521957,3260.7,3259.0,0.06135014]
[1722370577198,1.06252299,3260.6,3259.1,2.8862]
[1722370577395,1.06252299,3260.5,3259.2,3.32553501]
[1722370577600,1.06252299,3260.5,3259.3,0.55]
[1722370577838,1.06252299,3260.5,3259.4,0.06134765]
[1722370578042,1.06252299,3260.6,3259.5,0.55]
[1722370578351,1.06252299,3260.5,3259.6,0.06134687]
[1722370578513,1.06252299,3260.6,3259.7,0.55]
[1722370578856,1.06252299,3260.6,3259.8,0.06133756]
[1722370579150,1.06252299,3260.6,3259.9,0.55]
[1722370579305,3.38440786,3261.7,3260.0,2.35023756]
[1722370579499,3.38440786,3261.7,3260.1,0.55]
[1722370579500,3.06607,3261.5,3260.1,0.55]
[1722370579699,1.06228514,3261.4,3260.2,0.06133574]
[1722370579929,3.0,3261.4,3260.2,0.06133574]
[1722370580153,1.0623751,3261.3,3260.2,0.06133574]
[1722370580304,1.0623751,3261.2,3260.2,0.06133574]
[1722370580504,1.0623751,3261.3,3260.2,0.06133574]
[1722370580699,1.0623751,3261.2,3260.3,0.06133837]
[1722370581005,0.4521957,3261.7,3260.4,0.55]
[1722370581201,1.06220783,3261.6,3260.5,0.06132368]
[1722370581403,1.06220783,3261.5,3260.7,2.2889]
[1722370581603,0.4521957,3261.7,3260.8,0.89521001]
[1722370581841,3.06488,3262.8,3260.8,4.20301001]
[1722370582107,1.51423427,3262.7,3260.8,4.20301001]
[1722370582462,1.06203857,3262.6,3260.8,4.20301001]
[1722370582604,1.06203857,3262.5,3260.8,4.20301001]
[1722370582801,1.06203857,3262.4,3260.9,0.649191]
[1722370583049,1.06196237,3262.3,3261.0,0.61131621]
[1722370583213,1.06196237,3262.2,3261.0,0.61131621]
[1722370583418,3.06506,3262.6,3261.0,1.09653593]
[1722370583419,1.06196237,3262.1,3261.0,1.09653593]
[1722370583632,1.06196237,3262.5,3261.0,1.09653593]
[1722370584009,4.12712237,3262.5,3261.0,0.55]
[1722370584241,3.06547,3262.2,3260.9,0.55]
[1722370584454,4.06196237,3262.4,3260.9,0.55]
[1722370584455,1.06196237,3262.1,3260.9,0.55]
[1722370584626,1.06196237,3262.3,3260.9,0.55]
[1722370584837,3.5172257,3262.7,3261.3,2.3982]
[1722370584838,1.06196237,3262.2,3261.3,2.3982]
[1722370585044,0.4521957,3262.7,3261.4,0.61130223]
[1722370585209,1.06179046,3262.6,3261.5,2.3982]
[1722370585410,5.46856,3264.0,3261.6,0.61129755]
[1722370585626,1.06165373,3263.1,3261.9,2.3982]
[1722370585927,0.4521957,3263.8,3262.0,0.61129025]
[1722370586151,1.06156763,3263.7,3262.1,0.3078]
[1722370586367,1.06156763,3263.6,3262.4,3.718]
[1722370586578,1.06156763,3263.7,3262.5,3.68169307]
[1722370586739,1.06156763,3263.6,3262.5,4.23169307]
[1722370586942,1.06156763,3263.5,3262.6,0.79496931]
[1722370587140,0.4521957,3263.8,3262.7,0.61128269]
[1722370587340,0.4521957,3263.8,3262.8,0.06127738]
[1722370587545,1.06141089,3263.7,3262.9,0.55]
[1722370587774,1.06141089,3263.6,3262.9,0.55]
[1722370587924,1.06141089,3263.7,3262.7,0.55]
[1722370588131,1.06141089,3263.7,3262.7,1.04653793]
[1722370588328,1.06141089,3263.7,3262.7,0.55]
[1722370588782,1.06141089,3263.7,3262.6,3.55]
[1722370588989,0.4521957,3263.8,3262.6,0.55]
[1722370589145,1.06151822,3263.6,3262.6,0.55]
[1722370589345,0.4521957,3263.8,3262.6,0.967041]
[1722370589346,1.06151822,3263.5,3262.6,0.967041]
[1722370589529,0.4521957,3263.8,3262.7,0.06128512]
[1722370589884,0.4521957,3263.8,3262.8,0.55]
[1722370590069,0.4521957,3263.8,3262.9,0.06127764]
[1722370590273,0.4521957,3263.8,3263.1,2.4982]
[1722370590428,0.4521957,3263.8,3263.1,5.4982]
[1722370590640,0.4521957,3263.8,3263.2,0.55]
[1722370591281,0.4521957,3263.8,3263.2,1.15482]
[1722370592544,0.4521957,3263.8,3263.1,5.4982]
[1722370592744,0.4521957,3263.8,3263.2,0.06128224]
[1722370592974,0.4521957,3263.8,3263.3,0.55]
[1722370593174,0.4521957,3263.8,3263.4,0.06127443]
[1722370593373,0.4521957,3263.8,3263.5,0.55]
[1722370593575,0.4521957,3263.8,3263.6,0.06127441]
[1722370593890,0.1447234,3264.1,3263.6,0.06127441]
[1722370594975,0.1447234,3264.1,3263.7,0.55]
[1722370595175,0.1447234,3264.1,3263.8,0.06126555]
[1722370595496,0.1447234,3264.1,3263.9,0.55]
[1722370595794,0.1447234,3264.1,3264.0,0.06126427]
[1722370595996,0.1447234,3264.1,3264.0,3.03126427]
[1722370596195,0.1447234,3264.1,3264.0,6.3893907]
[1722370596996,0.0018366,3265.2,3264.0,6.3893907]
[1722370596997,0.0018366,3265.2,3264.0,6.32812643]
[1722370597197,0.0018366,3265.2,3264.3,3.718]
[1722370597489,0.0018366,3265.2,3264.1,3.0]
[1722370597705,0.0018366,3265.2,3264.4,0.55]
[1722370598160,0.0018366,3265.2,3264.1,3.0]
[1722370598161,0.0018366,3265.2,3264.5,0.06125823]
[1722370598349,0.0018366,3265.2,3264.2,0.55]
[1722370598350,0.0018366,3265.2,3264.6,0.55]
[1722370598692,0.0018366,3265.2,3264.2,0.55]
[1722370598847,0.0018366,3265.2,3264.3,0.355]
[1722370599212,0.0018366,3265.2,3264.4,0.55]
[1722370600210,0.0018366,3265.2,3264.5,0.06124962]
[1722370600406,0.0018366,3265.2,3264.6,0.55]
[1722370600621,0.0018366,3265.2,3264.7,0.06124719]
[1722370600822,0.0018366,3265.2,3264.8,0.55]
[1722370601048,0.0018366,3265.2,3264.9,0.06124715]
[1722370601328,0.0018366,3265.2,3265.0,2.55274718]
[1722370601484,0.0018366,3265.2,3265.1,0.55]
[1722370602323,0.0018366,3265.2,3265.0,2.4130219]
[1722370602627,0.0018366,3265.2,3265.1,0.0612363]
[1722370603133,0.0018366,3265.2,3265.0,2.10274718]
[1722370604364,0.0018366,3265.2,3265.1,0.06123936]
[1722370604715,0.0018366,3265.2,3265.0,2.10274718]
[1722370605170,0.0018366,3265.2,3265.1,0.06123939]
[1722370605321,0.0018366,3265.2,3265.1,0.61123939]
[1722370605722,0.0018366,3265.2,3265.1,0.55]
[1722370606157,0.0018366,3265.2,3264.5,3.0]
[1722370606459,0.0018366,3265.2,3264.3,9.7213]
[1722370606769,0.0018366,3265.2,3264.4,0.3078]
[1722370606955,0.0018366,3265.2,3264.5,0.06124135]
[1722370607262,0.0018366,3265.2,3264.4,0.3078]
[1722370607928,0.0018366,3265.2,3264.5,0.55]
[1722370608363,0.0018366,3265.2,3264.6,0.3690374]
[1722370608569,0.0018366,3265.2,3264.9,3.718]
[1722370608732,0.0018366,3265.2,3265.0,0.61123381]
[1722370609120,0.0018366,3265.2,3265.0,0.55]
[1722370609460,0.0018366,3265.2,3264.9,0.55]
[1722370609666,0.0018366,3265.2,3265.0,0.06123609]
[1722370609963,0.0018366,3265.2,3265.1,0.55]
[1722370611069,0.0018366,3265.2,3264.4,3.3078]
[1722370611283,0.0018366,3265.2,3264.6,0.3078]
[1722370611561,0.0018366,3265.2,3264.8,0.3078]
[1722370611716,0.0018366,3265.2,3264.9,0.55]
[1722370612651,0.0018366,3265.2,3264.8,0.8578]
[1722370613890,0.0018366,3265.2,3264.9,3.77923785]
[1722370614182,0.0018366,3265.2,3265.1,2.7899]
[1722370614385,0.0018366,3265.2,3265.0,0.55]
[1722370614537,0.0018366,3265.2,3264.5,7.375323]
[1722370614738,0.0018366,3265.2,3264.5,2.4821]
[1722370614977,0.0018366,3265.2,3264.3,13.25313]
[1722370614978,1.06095442,3265.1,3264.3,7.35]
[1722370615137,1.06097128,3265.0,3264.3,7.35]
[1722370615339,1.06097128,3264.9,3264.3,7.35]
[1722370615622,1.06097128,3265.1,3264.3,7.35]
[1722370615786,1.06097128,3264.8,3264.3,7.35]
[1722370615965,0.0018366,3265.2,3264.3,7.35]
[1722370616283,1.06104557,3265.1,3263.9,7.35]
[1722370616491,0.06124725,3265.0,3263.9,7.35]
[1722370616638,4.12397557,3264.9,3263.9,7.35]
[1722370616837,1.06104557,3264.8,3263.9,7.35]
[1722370617051,0.0018366,3265.2,3263.9,8.085]
[1722370617052,1.06104557,3265.1,3263.9,8.085]
[1722370617283,0.06308385,3265.2,3263.9,8.085]
[1722370617284,1.12231493,3265.0,3263.9,8.085]
[1722370617599,1.06106768,3264.9,3263.9,7.35]
[1722370617741,2.3013,3264.8,3263.3,7.35]
[1722370617940,3.06344,3264.3,3263.3,7.35]
[1722370618142,1.12231493,3264.2,3262.2,2.3935]
[1722370618342,1.12231493,3264.2,3262.3,0.27929308]
[1722370618343,3.06382,3263.9,3262.3,0.27929308]
[1722370618678,1.06106768,3263.8,3262.3,0.27929308]
[1722370618892,0.06124725,3263.7,3262.6,0.3078]
[1722370619036,1.12231493,3263.8,3262.6,0.3078]
[1722370619238,1.06106768,3263.7,3262.7,0.06128276]
[1722370619464,1.06106768,3263.6,3262.8,0.3078]
[1722370619782,1.06106768,3263.5,3262.8,0.3078]
[1722370619988,1.06106768,3264.0,3262.8,0.3078]
[1722370620144,1.06106768,3264.0,3261.4,0.30648283]
[1722370620145,3.06409,3263.7,3261.9,3.718]
[1722370620346,0.06124725,3263.6,3261.9,3.718]
[1722370620544,1.06162862,3263.7,3262.3,0.06129033]
[1722370620862,1.06162862,3263.6,3262.2,2.63285]
[1722370621054,1.06162862,3263.5,3262.2,2.63285]
[1722370621256,1.06162862,3263.4,3262.5,3.718]
[1722370621542,1.06162862,3263.3,3262.6,0.4330825]
[1722370621742,0.06124725,3264.3,3262.6,0.3718]
[1722370621942,3.06378,3264.0,3262.6,3.0]
[1722370622257,1.12269339,3263.9,3262.3,3.0]
[1722370622460,3.06337,3264.4,3262.4,0.06128573]
[1722370622660,3.06353,3264.2,3262.4,0.06128573]
[1722370622858,1.12272285,3264.1,3262.3,3.563285]
[1722370623223,3.06398,3263.8,3262.3,3.0]
[1722370623345,3.06416,3263.6,3261.8,42.35]
[1722370623549,3.06366,3264.1,3261.6,2.3488]
[1722370623550,1.0614756,3263.5,3261.9,3.718]
[1722370623787,3.06438,3263.3,3262.0,0.3718]
[1722370624004,1.12272285,3263.2,3261.7,35.0]
[1722370624164,1.0614756,3263.1,3261.6,2.6566]
[1722370624544,1.0614756,3263.1,3261.9,3.718]
[1722370624908,3.0,3264.3,3262.6,2.3488]
[1722370624909,3.06124725,3264.2,3262.6,2.3488]
[1722370625214,1.06148271,3264.1,3262.7,0.36907872]
[1722370625362,1.06148271,3264.0,3262.8,0.88306654]
[1722370625567,3.06124725,3264.2,3262.8,0.88306654]
[1722370625568,1.06139311,3263.9,3262.8,0.82178787]
[1722370625800,1.06139311,3263.8,3263.1,3.718]
[1722370626006,1.06139311,3264.3,3263.2,0.61127553]
[1722370626176,1.0612985,3264.2,3263.3,0.06127345]
[1722370626376,1.0612985,3264.1,3263.3,0.06127345]
[1722370626691,4.18628575,3264.0,3262.5,3.718]
[1722370626889,1.0612985,3263.9,3262.5,3.718]
[1722370627088,0.06124725,3263.8,3262.7,3.0]
[1722370627298,3.06412,3263.6,3262.0,9.7674]
[1722370627517,1.12254575,3263.5,3262.0,3.79672]
[1722370627715,4.1255885,3263.4,3262.0,2.7252]
[1722370627882,1.12254575,3263.3,3262.0,2.7252]
[1722370628093,0.4521957,3263.6,3261.9,3.718]
[1722370628094,1.12254575,3263.2,3261.9,3.718]
[1722370628281,1.12254575,3263.2,3261.5,7.35]
[1722370628282,1.0612985,3263.1,3261.5,7.35]
[1722370628623,1.06172741,3263.0,3261.6,0.06130282]
[1722370628775,1.06172741,3262.9,3261.9,3.718]
[1722370628971,0.4521957,3263.6,3262.0,0.06129232]
[1722370629226,1.06162534,3263.5,3262.0,0.36909232]
[1722370629403,1.06162534,3263.4,3262.0,0.36909232]
[1722370629605,1.06162534,3263.5,3262.4,0.3078]
[1722370629934,0.4521957,3263.6,3262.5,3.77928435]
[1722370630077,0.4521957,3263.6,3262.6,0.8578]
[1722370630275,2.3089,3264.4,3262.7,0.06128359]
[1722370630476,1.0613133,3264.3,3263.1,3.718]
[1722370630723,1.0613133,3264.2,3263.2,0.61127361]
[1722370630933,1.0613133,3264.1,3263.3,0.06127357]
[1722370631097,3.5151357,3264.9,3263.3,0.06127357]
[1722370631431,3.06371,3264.1,3262.6,3.3078]
[1722370631600,3.12497725,3264.0,3262.7,0.8578]
[1722370631807,3.06395,3263.8,3262.2,7.35]
[1722370632019,3.06417,3263.6,3262.2,7.35]
[1722370632235,4.18696871,3263.5,3262.2,7.35]
[1722370632437,3.06457,3263.1,3262.2,7.35]
[1722370632592,1.12271871,3263.0,3262.2,7.35]
[1722370632787,1.06147146,3262.9,3262.2,7.35]
[1722370633046,3.06406,3263.7,3262.3,0.735]
[1722370633193,3.06456,3263.2,3262.2,7.35]
[1722370633393,2.4025,3263.0,3262.2,7.35]
[1722370633698,1.06164011,3262.9,3261.8,19.48]
[1722370634105,1.12288736,3262.9,3261.8,7.35]
[1722370634289,4.12651011,3262.8,3261.8,7.35]
[1722370634484,1.12288736,3262.7,3261.8,7.35]
[1722370634708,3.12622725,3262.7,3261.8,7.35]
[1722370634899,3.12622725,3262.7,3261.4,12.13]
[1722370634900,3.06542,3262.2,3261.0,7.35]
[1722370635107,4.18870684,3262.1,3261.0,7.35]
[1722370635320,1.06211668,3262.0,3261.0,7.35]
[1722370635537,1.06211668,3261.9,3261.1,0.06131509]
[1722370635703,3.4521957,3262.9,3261.3,3.718]
[1722370636032,1.06194237,3262.8,3261.5,2.4068]
[1722370636236,1.06194237,3262.7,3261.6,0.06130026]
[1722370636418,1.06194237,3262.6,3261.6,0.06130026]
[1722370636750,3.06385,3263.9,3261.9,3.718]
[1722370636888,1.06169486,3263.4,3262.0,0.61128973]
[1722370637089,1.06169486,3263.3,3262.1,0.06129387]
[1722370637348,1.06169486,3263.2,3262.4,3.47]
[1722370637524,1.06169486,3263.8,3262.5,0.06128978]
[1722370637695,1.06152157,3263.7,3262.8,3.47]
[1722370637894,0.4521957,3263.9,3262.9,0.06128507]
[1722370638141,1.06153955,3263.6,3262.9,0.06128507]
[1722370638340,3.06424,3263.5,3262.9,0.06128507]
[1722370638514,3.06424,3263.5,3262.4,3.47]
[1722370638515,1.06153955,3263.4,3262.4,3.47]
[1722370638710,1.06153955,3263.4,3262.5,0.06129091]
[1722370638892,1.06153955,3263.3,3262.5,0.06129091]
[1722370639236,1.06153955,3263.2,3262.4,3.47]
[1722370639537,1.06153955,3263.1,3262.4,3.47]
[1722370639718,0.4521957,3263.9,3262.1,0.3078]
[1722370639719,0.06124725,3263.0,3262.1,0.3078]
[1722370639917,3.06453,3263.2,3262.1,0.3078]
[1722370640142,1.1227868,3263.1,3262.0,3.47]
[1722370640345,1.06153955,3263.0,3262.0,3.47]
[1722370640497,0.06124725,3262.9,3262.0,3.47]
[1722370640848,1.06153955,3262.8,3262.1,0.06130393]
[1722370641147,0.06124725,3262.7,3262.0,3.47]
[1722370641306,0.06124725,3262.7,3261.5,3.0]
[1722370641494,3.06469,3263.0,3261.6,0.06130808]
[1722370641688,1.57533231,3262.9,3261.4,7.35]
[1722370641990,1.06188936,3262.8,3262.6,3.712]
[1722370642230,3.0635,3264.3,3262.7,0.06129315]
[1722370642390,1.72036766,3264.7,3263.2,3.712]
[1722370642391,1.06148309,3264.2,3263.2,3.712]
[1722370642592,1.72036766,3264.7,3264.0,5.34385]
[1722370642791,1.72036766,3264.7,3264.1,0.35374993]
[1722370642792,0.83624108,3264.7,3264.1,0.35374993]
[1722370642994,0.32078555,3265.6,3264.7,0.3078]
[1722370643343,1.82807753,3266.5,3265.1,0.3078]
[1722370643493,1.82807753,3266.5,3265.1,1.37309632]
[1722370643689,0.06124725,3266.4,3264.7,3.0]
[1722370643894,0.06124725,3266.4,3264.6,3.712]
[1722370643895,3.06157,3266.3,3264.6,3.712]
[1722370644195,3.06187,3266.0,3264.6,3.712]
[1722370644396,0.06124725,3265.9,3264.6,3.712]
[1722370644855,3.12326725,3265.9,3264.3,3.3078]
[1722370644991,3.06233,3265.5,3264.4,3.712]
[1722370645193,0.06124725,3265.9,3264.5,0.06125608]
[1722370645194,0.06124725,3265.4,3264.5,0.06125608]
[1722370645434,2.497,3266.0,3264.5,0.74638169]
[1722370645631,5.37196,3266.6,3264.5,0.74638169]
[1722370645831,2.3106,3266.6,3265.0,3.712]
[1722370646030,2.3106,3266.6,3265.1,0.0612429]
[1722370646235,3.06138,3266.5,3265.1,0.0612429]
[1722370646605,3.12273725,3266.4,3265.1,0.0612429]
[1722370646809,3.06167,3266.2,3264.6,0.3078]
[1722370647161,3.06167,3266.2,3264.4,3.712]
[1722370647162,3.06204,3265.8,3264.4,3.712]
[1722370647440,3.06165,3266.3,3264.5,0.43244971]
[1722370647791,3.0614,3266.5,3265.0,3.712]
[1722370648033,3.0,3266.4,3265.1,0.06124291]
[1722370648391,5.3106,3266.6,3265.1,0.06124291]
[1722370648596,3.06166,3266.2,3265.0,3.712]
[1722370648823,2.3106,3266.6,3265.0,3.712]
[1722370648824,3.06124725,3266.1,3265.0,3.712]
[1722370649145,0.06124725,3266.1,3265.1,0.06124091]
[1722370649351,2.3106,3266.6,3265.1,0.438565]
[1722370649499,3.0609,3267.1,3265.1,4.296365]
[1722370649721,5.36162,3267.2,3265.1,6.686065]
[1722370649908,0.31880731,3267.0,3265.1,6.686065]
[1722370650222,5.36162,3267.2,3265.1,6.686065]
[1722370650425,2.3009,3267.2,3265.1,6.686065]
[1722370650957,0.1447234,3267.4,3265.1,6.686065]
[1722370651107,0.1447234,3267.4,3266.4,3.712]
[1722370651556,0.1447234,3267.4,3266.5,0.55]
[1722370651744,0.1447234,3267.4,3266.6,0.06120923]
[1722370652415,0.1447234,3267.4,3266.7,0.55]
[1722370652767,0.1447234,3267.4,3266.5,3.0]
[1722370652913,0.1447234,3267.4,3265.9,2.3277]
[1722370653114,0.1447234,3267.4,3266.0,0.55]
[1722370653461,0.1447234,3267.4,3266.1,0.3078]
[1722370653644,0.1447234,3267.4,3266.2,0.6112199]
[1722370653813,0.1447234,3267.4,3266.2,0.55]
[1722370654019,3.2053234,3267.4,3266.2,0.55]
[1722370654367,3.2053234,3267.4,3266.0,3.0]
[1722370654368,3.06089,3267.1,3265.4,0.3078]
[1722370654512,3.12216725,3267.0,3265.4,0.94721]
[1722370654712,3.12216725,3267.0,3264.9,0.35374993]
[1722370654713,2.3094,3266.8,3264.4,0.45168084]
[1722370654963,3.06157,3266.3,3264.2,2.3743]
[1722370655180,8.37054,3266.8,3264.3,0.06125]
[1722370655181,5.3094,3266.8,3264.3,0.06125]
[1722370655489,0.1447234,3267.4,3265.5,3.712]
[1722370655610,0.1447234,3267.4,3266.1,3.712]
[1722370655813,0.1447234,3267.4,3266.2,0.06120797]
[1722370656014,0.1447234,3267.4,3266.7,6.0814]
[1722370656211,0.1447234,3267.4,3265.9,2.3694]
[1722370656439,0.1447234,3267.4,3266.0,0.06121277]
[1722370656654,0.1447234,3267.4,3266.0,3.0]
[1722370656916,0.1447234,3267.4,3265.9,2.3694]
[1722370657115,0.1447234,3267.4,3266.1,3.712]
[1722370657363,3.06073,3267.2,3266.0,0.55]
[1722370657723,3.12212725,3267.1,3265.9,0.3078]
[1722370657861,0.06124725,3267.1,3265.9,0.3078]
[1722370658207,3.06101,3266.9,3265.5,3.0]
[1722370658417,0.06124725,3266.8,3265.4,2.2752]
[1722370658906,3.0,3266.9,3265.5,3.7732309]
[1722370659073,0.1447234,3267.4,3265.5,3.7732309]
[1722370659277,0.1447234,3267.4,3266.1,3.712]
[1722370659594,0.1447234,3267.4,3266.3,0.3078]
[1722370659919,0.1447234,3267.4,3266.2,0.61121252]
[1722370659920,0.1447234,3267.4,3266.2,0.55]
[1722370660218,0.06124725,3267.3,3265.8,3.0]
[1722370660391,0.06124725,3267.3,3265.9,0.8578]
[1722370660901,0.06124725,3267.3,3266.0,0.06122346]
[1722370661347,3.2052734,3267.4,3266.0,0.06122346]
[1722370661348,0.1447234,3267.4,3266.0,0.06122346]
[1722370661548,0.1447234,3267.4,3266.1,0.55]
[1722370661745,0.06124725,3267.3,3265.7,0.3078]
[1722370661890,0.06124725,3267.3,3265.7,1.00978]
[1722370662324,0.1447234,3267.4,3265.8,0.06122327]
[1722370662652,0.06124725,3267.3,3265.7,1.00978]
[1722370662991,0.1447234,3267.4,3265.9,0.3078]
[1722370663220,0.1447234,3267.4,3266.1,0.3078]
[1722370663499,0.1447234,3267.4,3266.2,0.06121377]
[1722370663700,0.1447234,3267.4,3266.4,0.3078]
[1722370663927,0.1447234,3267.4,3266.5,0.06120732]
[1722370664248,0.1447234,3267.4,3266.6,0.8578]
[1722370664388,0.1447234,3267.4,3266.7,4.08100326]
[1722370664594,0.1447234,3267.4,3266.8,0.61120027]
[1722370664793,0.1447234,3267.4,3266.9,0.46310003]
[1722370664994,0.1447234,3267.4,3267.0,0.61120021]
[1722370665253,0.1447234,3267.4,3267.0,0.55]
[1722370665401,0.1447234,3267.4,3267.1,0.06120021]
[1722370666351,0.1447234,3267.4,3267.0,0.3078]
[1722370666548,0.1447234,3267.4,3267.1,0.8578]
[1722370667255,0.1447234,3267.4,3267.1,0.55]
[1722370667550,0.1447234,3267.4,3266.9,1.06478]
[1722370668044,0.1447234,3267.4,3267.0,0.6112001]
[1722370668244,0.1447234,3267.4,3267.1,0.3078]
[1722370668416,0.1447234,3267.4,3267.2,0.9189918]
[1722370668623,0.1447234,3267.4,3267.0,0.55]
[1722370668624,0.1447234,3267.4,3267.3,0.61119167]
[1722370668957,0.1447234,3267.4,3267.3,0.06119167]
[1722370669247,0.1447234,3267.4,3267.3,0.91899167]
[1722370669449,0.1447234,3267.4,3267.3,0.8578]
[1722370670563,0.1447234,3267.4,3267.3,0.91898737]
[1722370671153,0.1447234,3267.4,3267.3,0.8578]
[1722370671351,0.1447234,3267.4,3267.0,0.3078]
[1722370671536,0.1447234,3267.4,3267.0,0.714278]
[1722370672113,0.1447234,3267.4,3266.7,4.0198]
[1722370673232,0.1447234,3267.4,3266.8,0.06120054]
[1722370673727,0.1447234,3267.4,3266.9,0.3078]
[1722370673931,0.1447234,3267.4,3267.1,0.3078]
[1722370674375,0.1447234,3267.4,3267.0,0.55]
[1722370674684,0.1447234,3267.4,3266.9,0.55]
[1722370674883,0.1447234,3267.4,3266.9,1.2762]
[1722370678051,0.1447234,3267.4,3266.9,1.584]
[1722370678256,0.1447234,3267.4,3266.9,1.48235256]
[1722370678883,0.1447234,3267.4,3266.8,3.0]
[1722370679032,0.1447234,3267.4,3266.6,7.35]
[1722370679239,0.06124725,3267.3,3266.6,7.35]
[1722370679438,3.12193725,3267.3,3266.6,7.35]
[1722370679899,3.06081,3267.1,3266.6,7.35]
[1722370680182,3.06081,3267.1,3265.7,7.35]
[1722370680183,0.06124725,3267.0,3265.7,7.35]
[1722370680937,0.06124725,3267.0,3265.8,0.0612263]
[1722370681138,0.1447234,3267.4,3265.9,4.0098]
[1722370681468,0.06124725,3267.3,3266.1,0.3078]
[1722370681785,3.12187725,3267.3,3265.7,7.35]
[1722370681942,0.06124725,3267.3,3265.8,3.0]
[1722370682384,3.12187725,3267.3,3265.8,3.0]
[1722370682691,3.06087,3267.1,3265.8,3.0]
[1722370682999,5.46783,3266.6,3265.7,7.35]
[1722370683158,0.06124725,3266.5,3265.7,7.35]
[1722370683360,2.46774725,3266.6,3265.7,7.35]
[1722370684195,3.06157,3266.3,3265.7,7.35]
[1722370684352,0.06124725,3266.2,3265.0,0.3078]
[1722370684547,0.06124725,3266.5,3265.0,1.07358]
[1722370684752,5.4065,3266.6,3265.1,0.06123948]
[1722370685048,3.12262725,3266.5,3265.0,1.07358]
[1722370685749,3.12262725,3266.5,3265.0,3.76578]
[1722370685750,0.06124725,3266.5,3265.0,3.76578]
[1722370686052,3.06179,3266.1,3264.9,7.35]
[1722370686283,5.8621357,3265.8,3264.9,7.35]
[1722370686484,3.12339725,3265.7,3264.3,7.3]
[1722370686710,0.06124725,3265.7,3264.3,7.3]
[1722370686863,3.06227,3265.6,3264.3,7.3]
[1722370687193,3.06248,3265.4,3264.2,0.3078]
[1722370687496,0.06124725,3265.3,3264.2,0.3078]
[1722370687804,3.0,3265.5,3264.3,0.06126419]
[1722370688010,2.8000957,3265.8,3264.3,7.6078]
[1722370688011,0.06124725,3265.6,3264.3,7.6078]
[1722370688208,0.06124725,3265.6,3264.4,0.06125015]
[1722370688365,0.06124725,3265.6,3264.3,8.36858]
[1722370688752,0.06124725,3265.6,3264.4,3.06125012]
[1722370688953,2.8000957,3265.8,3264.5,0.90374993]
[1722370689151,0.06124725,3265.7,3264.4,3.3078]
[1722370689455,0.06124725,3265.7,3264.4,0.3078]
[1722370689456,3.06233,3265.5,3264.4,0.3078]
[1722370689646,0.06124725,3265.4,3264.4,0.36906086]
[1722370689851,3.0,3265.7,3264.4,0.36906086]
[1722370690100,0.86134295,3265.8,3264.4,1.13596695]
[1722370690260,0.4521957,3265.8,3264.5,3.702]
[1722370690460,0.4521957,3265.8,3264.6,0.4837967]
[1722370690698,0.4521957,3265.8,3264.4,3.50520609]
[1722370690699,3.5142857,3265.8,3264.4,0.3078]
[1722370690858,3.06247,3265.4,3264.4,0.3078]
[1722370691053,3.0627,3265.1,3264.0,0.3078]
[1722370691262,3.06284,3265.0,3264.0,0.3078]
[1722370691475,3.06293,3264.9,3264.0,0.3078]
[1722370691681,10.45264,3265.2,3264.0,0.3078]
[1722370692021,3.06299,3264.8,3263.3,0.3078]
[1722370692309,3.06321,3264.6,3263.2,9.6426]
[1722370692464,3.06321,3264.6,3263.2,10.63764]
[1722370693359,3.06321,3264.6,3263.2,7.3]
[1722370693602,6.12682,3264.4,3263.2,7.3]
[1722370693831,3.0634,3264.4,3263.2,7.3]
[1722370694124,0.4521957,3264.5,3263.2,7.3]
[1722370694277,3.4521957,3264.5,3263.2,7.3]
[1722370694467,0.4521957,3264.5,3263.2,7.3]
[1722370694943,0.4521957,3264.5,3263.3,0.06128458]
[1722370695125,0.4521957,3264.5,3263.2,8.03]
[1722370695625,0.4521957,3264.5,3263.3,0.06127986]
[1722370695833,0.4521957,3264.5,3263.3,3.36907986]
[1722370695990,2.3444,3265.6,3263.5,0.3078]
[1722370696172,5.40662,3265.6,3263.9,7.6078]
[1722370696374,3.06241,3265.4,3263.9,42.3]
[1722370696572,3.06267,3265.2,3264.0,3.0]
[1722370696787,3.06245,3265.4,3264.0,3.0]
[1722370697679,0.4521957,3265.7,3264.1,0.06126481]
[1722370697907,0.4521957,3265.7,3264.3,2.3503]
[1722370698124,0.4521957,3265.7,3264.4,1.27209705]
[1722370698476,3.2052734,3267.4,3264.6,0.3071]
[1722370698477,0.1447234,3267.4,3264.6,0.3071]
[1722370698741,0.4521957,3266.9,3264.8,0.3071]
[1722370698875,0.4521957,3266.9,3264.9,35.95436656]
[1722370699071,3.0611,3266.8,3265.0,3.0]
[1722370699316,3.06159,3266.3,3264.8,0.3071]
[1722370699618,3.06144,3266.5,3264.8,0.3071]
[1722370699919,3.06158,3266.3,3264.8,0.63781]
[1722370700234,3.06158,3266.3,3264.6,38.35374993]
[1722370700235,3.06161,3266.3,3264.6,3.0]
[1722370700373,3.06161,3266.3,3264.2,3.3071]
[1722370700577,2.3991,3266.5,3264.5,2.58533]
[1722370700578,3.06154,3266.4,3264.5,2.58533]
[1722370700777,3.0,3266.3,3264.6,3.0]
[1722370701025,3.06176,3266.1,3264.6,3.0]
[1722370701259,3.0621,3265.8,3264.5,2.58533]
[1722370701553,0.4521957,3265.9,3263.9,2.3412]
[1722370701554,3.06239,3265.5,3263.9,2.3412]
[1722370701765,3.06229,3265.6,3263.9,2.57532]
[1722370702493,3.0,3265.5,3263.9,2.3412]
[1722370702769,3.06284,3265.0,3263.9,2.3412]